bitfinex/quotes_BTCUSD_20250101
["timestamp","ask_amount","ask_price","bid_price","bid_amount"]
[1735774302867,0.1591706,94791.0,94790.0,0.53569329]
[1735774303607,0.3479885,94791.0,94790.0,0.5275653]
[1735774303813,0.3479885,94791.0,94790.0,0.53569329]
[1735774304606,0.1591706,94791.0,94790.0,0.53569329]
[1735774304807,0.1531706,94791.0,94790.0,0.53569329]
[1735774304986,0.1561706,94791.0,94790.0,0.53569329]
[1735774305410,0.1521706,94791.0,94790.0,0.5704986]
[1735774305814,0.1531706,94791.0,94790.0,0.5704986]
[1735774306041,0.1551706,94791.0,94790.0,0.53569329]
[1735774306373,0.3439885,94791.0,94790.0,0.53569329]
[1735774306617,0.3419885,94791.0,94790.0,0.53569329]
[1735774306815,0.35121177,94791.0,94790.0,0.53569329]
[1735774307035,0.34821177,94791.0,94790.0,0.53569329]
[1735774307414,0.15939387,94791.0,94790.0,0.53669329]
[1735774307591,0.15939387,94791.0,94790.0,0.53569329]
[1735774307977,0.16239387,94791.0,94790.0,0.53569329]
[1735774308331,0.15939387,94791.0,94790.0,0.53569329]
[1735774308660,0.16639387,94791.0,94790.0,0.5275653]
[1735774309067,0.16439387,94791.0,94790.0,0.53569329]
[1735774309274,0.16639387,94791.0,94790.0,0.53569329]
[1735774309647,0.16439387,94791.0,94790.0,0.53569329]
[1735774310054,0.16539387,94791.0,94790.0,0.53569329]
[1735774310267,0.16039387,94791.0,94790.0,0.53569329]
[1735774310476,0.16239387,94791.0,94790.0,0.53569329]
[1735774311105,0.16341411,94791.0,94790.0,0.53569329]
[1735774312780,0.24461411,94791.0,94790.0,0.53569329]
[1735774313017,0.65204064,94791.0,94790.0,0.43019829]
[1735774313219,0.65709442,94791.0,94790.0,0.43019829]
[1735774313635,0.94079924,94791.0,94790.0,0.40909929]
[1735774313843,0.93879924,94791.0,94790.0,0.34580229]
[1735774314055,0.93879924,94791.0,94790.0,0.32470329]
[1735774314261,0.94479924,94791.0,94790.0,0.32570329]
[1735774314673,0.95079924,94791.0,94790.0,0.32670329]
[1735774315076,0.66709442,94791.0,94790.0,0.28450529]
[1735774315488,0.66709442,94791.0,94790.0,2.9e-07]
[1735774315705,0.50097742,94791.0,94790.0,2.9e-07]
[1735774316889,0.43578273,94791.0,94790.0,2.9e-07]
[1735774317095,0.50097742,94791.0,94790.0,2.9e-07]
[1735774318102,0.78454655,94791.0,94790.0,2.9e-07]
[1735774318811,0.50097742,94791.0,94790.0,2.9e-07]
[1735774320585,0.78444001,94791.0,94790.0,2.9e-07]
[1735774321485,0.78444001,94791.0,94790.0,5.9e-07]
[1735774321733,0.78502954,94791.0,94790.0,5.9e-07]
[1735774323330,0.88502954,94791.0,94790.0,5.9e-07]
[1735774323582,0.60156695,94791.0,94790.0,5.9e-07]
[1735774326819,0.92077607,94791.0,94790.0,5.9e-07]
[1735774327603,0.33217226,94791.0,94790.0,5.9e-07]
[1735774327803,0.31595692,94791.0,94790.0,5.9e-07]
[1735774331552,0.1631706,94791.0,94790.0,5.9e-07]
[1735774335221,0.361012,94781.0,94780.0,0.0148059]
[1735774336514,0.365012,94781.0,94780.0,0.0148059]
[1735774336709,0.373012,94781.0,94780.0,0.0158059]
[1735774337822,0.369012,94781.0,94780.0,0.0158059]
[1735774338053,0.369012,94781.0,94780.0,0.0148059]
[1735774338054,0.361012,94781.0,94780.0,0.0148059]
[1735774338262,0.15,94781.0,94780.0,0.0148059]
[1735774338519,0.154,94781.0,94780.0,0.0148059]
[1735774339038,0.154,94781.0,94780.0,0.0943059]
[1735774339222,0.157,94781.0,94780.0,0.0943059]
[1735774339683,0.154,94781.0,94780.0,0.0943059]
[1735774340017,0.156,94781.0,94780.0,0.0943059]
[1735774340228,0.152,94781.0,94780.0,0.0943059]
[1735774340428,0.15,94781.0,94780.0,0.0943059]
[1735774340801,0.154,94781.0,94780.0,0.0943059]
[1735774340980,0.15,94781.0,94780.0,0.0943059]
[1735774341182,0.15,94781.0,94780.0,0.0953059]
[1735774341354,0.15,94781.0,94780.0,0.0943059]
[1735774342811,0.152,94781.0,94780.0,0.0943059]
[1735774343512,0.153,94781.0,94780.0,0.0943059]
[1735774345163,0.153,94781.0,94780.0,0.0148912]
[1735774347799,0.152,94781.0,94780.0,0.0148912]
[1735774348223,0.153,94781.0,94780.0,0.0148912]
[1735774348990,0.153,94781.0,94780.0,0.0943912]
[1735774349395,0.152,94781.0,94780.0,0.0943912]
[1735774349590,0.15,94781.0,94780.0,0.0943912]
[1735774349796,0.15,94781.0,94780.0,0.0963912]
[1735774353313,0.18887521,94797.0,94790.0,0.0148059]
[1735774353525,0.18887521,94797.0,94790.0,0.1413059]
[1735774354148,0.15,94796.0,94790.0,0.24529222]
[1735774354501,0.0051706,94791.0,94790.0,0.45628422]
[1735774354620,0.0051706,94791.0,94790.0,0.54301324]
[1735774355037,0.0051706,94791.0,94790.0,0.74301324]
[1735774355906,0.0001706,94791.0,94790.0,0.74301324]
[1735774356134,0.0001706,94791.0,94790.0,0.74701324]
[1735774356359,0.0011706,94791.0,94790.0,0.75601324]
[1735774357390,0.0011706,94791.0,94790.0,0.66928422]
[1735774362087,0.0011706,94791.0,94790.0,0.68011027]
[1735774363476,0.0011706,94791.0,94790.0,1.20759027]
[1735774370297,0.0011706,94791.0,94790.0,1.10759027]
[1735774370447,0.0011706,94791.0,94790.0,1.20759027]
[1735774370668,0.0011706,94791.0,94790.0,1.31157659]
[1735774372666,0.0011706,94791.0,94790.0,1.20759027]
[1735774375660,0.0011706,94791.0,94790.0,1.09278437]
[1735774375834,0.0011706,94791.0,94790.0,1.06249027]
[1735774377201,0.0011706,94791.0,94790.0,1.16249027]
[1735774384712,0.0011706,94791.0,94790.0,0.67009827]
[1735774385048,0.0011706,94791.0,94790.0,0.65927222]
[1735774385955,0.0011706,94791.0,94790.0,0.5552859]
[1735774387721,0.0011706,94791.0,94790.0,0.5512859]
[1735774388096,0.0011706,94791.0,94790.0,0.5442859]
[1735774388097,0.0001706,94791.0,94790.0,0.5442859]
[1735774388415,0.0011706,94791.0,94790.0,0.5502859]
[1735774389283,0.0011706,94791.0,94790.0,0.5482859]
[1735774389710,0.0011706,94791.0,94790.0,0.5502859]
[1735774408563,0.0011706,94791.0,94790.0,0.7612779]
[1735774409435,0.0011706,94791.0,94790.0,0.5502859]
[1735774416410,0.0011706,94791.0,94790.0,0.56086448]
[1735774440082,0.0011706,94791.0,94790.0,0.6648508]
[1735774440704,0.0011706,94791.0,94790.0,0.7413508]
[1735774442968,0.0011706,94791.0,94790.0,0.99403712]
[1735774444847,0.0001706,94791.0,94790.0,0.98603712]
[1735774445288,0.0001706,94791.0,94790.0,0.98803712]
[1735774445488,0.0011706,94791.0,94790.0,0.99403712]
[1735774445700,0.0001706,94791.0,94790.0,0.98603712]
[1735774446034,0.0011706,94791.0,94790.0,0.99903712]
[1735774448922,0.0011706,94791.0,94790.0,0.8950508]
[1735774449124,0.0011706,94791.0,94790.0,0.8463508]
[1735774449956,0.0011706,94791.0,94790.0,0.7463508]
[1735774450277,0.0011706,94791.0,94790.0,0.6698508]
[1735774458751,0.0011706,94791.0,94790.0,0.7448508]
[1735774458955,0.0011706,94791.0,94790.0,0.84883712]
[1735774460943,0.0011706,94791.0,94790.0,0.7448508]
[1735774461199,0.0011706,94791.0,94790.0,0.8448508]
[1735774461416,0.0011706,94791.0,94790.0,0.9448508]
[1735774461593,0.0011706,94791.0,94790.0,0.9678508]
[1735774462382,0.0011706,94791.0,94790.0,0.98210188]
[1735774462582,0.0011706,94791.0,94790.0,1.43686756]
[1735774465726,0.0011706,94791.0,94790.0,1.58686756]
[1735774466535,0.0011706,94791.0,94790.0,1.82414223]
[1735774467575,0.0011706,94791.0,94790.0,1.58686756]
[1735774470925,0.0011706,94791.0,94790.0,1.72916256]
[1735774472656,0.0011706,94791.0,94790.0,1.3783832]
[1735774479570,0.0011706,94791.0,94790.0,1.58617852]
[1735774479762,0.0001155,94801.0,94800.0,0.2148059]
[1735774479999,0.0001155,94801.0,94800.0,1.15927281]
[1735774480000,0.00016514,94801.0,94800.0,1.15927281]
[1735774480174,0.00016514,94801.0,94800.0,1.24337281]
[1735774480913,0.00016514,94801.0,94800.0,1.24537281]
[1735774481157,0.00016514,94801.0,94800.0,1.25037281]
[1735774485544,0.00016514,94801.0,94800.0,1.24337281]
[1735774485864,0.00016514,94801.0,94800.0,1.25037281]
[1735774486143,0.00016514,94801.0,94800.0,1.24537281]
[1735774486456,0.00016514,94801.0,94800.0,1.3614592]
[1735774486659,0.00116514,94801.0,94800.0,1.3684592]
[1735774487160,0.00116514,94801.0,94800.0,1.35421485]
[1735774487370,0.00116514,94801.0,94800.0,1.25937281]
[1735774488394,0.00116514,94801.0,94800.0,1.7992775]
[1735774489150,0.00116514,94801.0,94800.0,1.8098395]
[1735774490813,0.00116514,94801.0,94800.0,1.8241045]
[1735774491930,0.00116514,94801.0,94800.0,1.8098395]
[1735774494480,0.00116514,94801.0,94800.0,1.62015542]
[1735774495214,0.00116514,94801.0,94800.0,1.64315542]
[1735774497471,0.00116514,94801.0,94800.0,1.53955542]
[1735774498672,0.00116514,94801.0,94800.0,1.55382257]
[1735774498873,0.00116514,94801.0,94800.0,1.20360196]
[1735774499255,0.00116514,94801.0,94800.0,1.18212137]
[1735774501744,0.08016514,94801.0,94800.0,0.76058937]
[1735774501944,0.08016514,94801.0,94800.0,0.68961632]
[1735774501945,0.12736514,94801.0,94800.0,0.68961632]
[1735774502104,0.12736514,94801.0,94800.0,0.70442222]
[1735774502711,0.12636514,94801.0,94800.0,0.69742222]
[1735774502905,0.12636514,94801.0,94800.0,0.70042222]
[1735774503501,0.12636514,94801.0,94800.0,0.69742222]
[1735774503698,0.12636514,94801.0,94800.0,0.80140854]
[1735774503904,0.12636514,94801.0,94800.0,0.68842222]
[1735774504520,0.12636514,94801.0,94800.0,0.69642222]
[1735774504719,0.12636514,94801.0,94800.0,0.69142222]
[1735774504979,0.12636514,94801.0,94800.0,0.69942222]
[1735774507991,0.04736514,94801.0,94800.0,0.69942222]
[1735774511240,0.12756514,94801.0,94800.0,0.5954359]
[1735774511439,0.12756514,94801.0,94800.0,0.5532359]
[1735774511654,0.12756514,94801.0,94800.0,0.53843]
[1735774517566,0.12756514,94801.0,94800.0,0.53543]
[1735774518106,0.12756514,94801.0,94800.0,0.52843]
[1735774518390,0.12756514,94801.0,94800.0,0.53143]
[1735774518763,0.27756514,94801.0,94800.0,0.53143]
[1735774518972,0.30328551,94801.0,94800.0,0.48143]
[1735774519205,0.40727183,94801.0,94800.0,0.48143]
[1735774519365,0.40727183,94801.0,94800.0,0.30333]
[1735774519366,0.4182675,94801.0,94800.0,0.30333]
[1735774520379,0.4182675,94801.0,94800.0,0.29933]
[1735774520834,0.4202675,94801.0,94800.0,0.30033]
[1735774521182,0.4182675,94801.0,94800.0,0.30033]
[1735774521390,0.27956514,94801.0,94800.0,0.30033]
[1735774521590,0.49053314,94801.0,94800.0,0.30033]
[1735774522170,0.49453314,94801.0,94800.0,0.30033]
[1735774523578,0.48853314,94801.0,94800.0,0.29933]
[1735774523777,0.44233314,94801.0,94800.0,0.29933]
[1735774525188,0.44433314,94801.0,94800.0,0.29933]
[1735774525898,0.36413314,94801.0,94800.0,0.29933]
[1735774526277,0.21413314,94801.0,94800.0,0.29933]
[1735774528472,0.00316514,94801.0,94800.0,0.3141359]
[1735774530414,0.36413314,94801.0,94800.0,0.3141359]
[1735774531797,0.36413314,94801.0,94800.0,0.30464178]
[1735774535493,0.15316514,94801.0,94800.0,0.31944768]
[1735774536835,0.15316514,94801.0,94800.0,0.3141359]
[1735774537208,0.15316514,94801.0,94800.0,0.31944768]
[1735774537377,0.15316514,94801.0,94800.0,0.30464178]
[1735774537676,0.15316514,94801.0,94800.0,0.31944768]
[1735774540239,0.15316514,94801.0,94800.0,0.30472708]
[1735774540442,0.15316514,94801.0,94800.0,0.31953298]
[1735774541829,0.15316514,94801.0,94800.0,0.30472708]
[1735774542506,0.15316514,94801.0,94800.0,0.31953298]
[1735774543134,0.15316514,94801.0,94800.0,0.30472708]
[1735774551229,0.15334955,94801.0,94800.0,0.30472708]
[1735774551429,0.17893317,94801.0,94800.0,0.30472708]
[1735774551635,0.25663317,94801.0,94800.0,0.2994153]
[1735774552033,0.25663317,94801.0,94800.0,0.30472708]
[1735774553895,0.17893317,94801.0,94800.0,0.30472708]
[1735774554759,0.32075458,94801.0,94800.0,0.30472708]
[1735774554959,0.32075458,94801.0,94800.0,0.2994153]
[1735774555167,0.29543326,94801.0,94800.0,0.30472708]
[1735774555612,0.29498655,94801.0,94800.0,0.30472708]
[1735774556577,0.15316514,94801.0,94800.0,0.30472708]
[1735774557597,0.16576237,94801.0,94800.0,0.30472708]
[1735774557968,0.35485759,94801.0,94800.0,0.30472708]
[1735774558145,0.20485759,94801.0,94800.0,0.30472708]
[1735774558775,0.01576237,94801.0,94800.0,0.30472708]
[1735774561532,0.26974869,94801.0,94800.0,0.30472708]
[1735774561717,0.41577139,94801.0,94800.0,0.30472708]
[1735774561981,1.02450349,94801.0,94800.0,0.2994153]
[1735774562180,1.03314149,94801.0,94800.0,0.2994153]
[1735774562353,0.90285249,94801.0,94800.0,8.53e-05]
[1735774562859,0.90085249,94801.0,94800.0,8.53e-05]
[1735774563055,0.90485249,94801.0,94800.0,8.53e-05]
[1735774563261,0.90385249,94801.0,94800.0,8.53e-05]
[1735774563464,0.67128839,94801.0,94800.0,0.0010853]
[1735774563622,0.66728839,94801.0,94800.0,0.0010853]
[1735774563819,0.67128839,94801.0,94800.0,0.0010853]
[1735774565975,0.52758839,94801.0,94800.0,0.0010853]
[1735774566174,0.29707139,94801.0,94800.0,0.0010853]
[1735774566391,0.29731971,94801.0,94800.0,0.0010853]
[1735774569350,1.40052881,94801.0,94800.0,0.0010853]
[1735774569522,0.40551381,94801.0,94800.0,0.0010853]
[1735774569732,1.33722881,94801.0,94800.0,0.0010853]
[1735774569962,1.28967881,94801.0,94800.0,0.0010853]
[1735774570173,0.40551381,94801.0,94800.0,0.0010853]
[1735774570806,1.29688481,94801.0,94800.0,0.0010853]
[1735774572983,1.28403926,94801.0,94800.0,0.0010853]
[1735774573702,0.30747416,94801.0,94800.0,0.0010853]
[1735774573929,0.39266826,94801.0,94800.0,0.0010853]
[1735774574109,0.50275326,94801.0,94800.0,0.0010853]
[1735774574301,0.39266826,94801.0,94800.0,0.0010853]
[1735774574535,0.30747416,94801.0,94800.0,0.0010853]
[1735774574711,0.39266826,94801.0,94800.0,0.0010853]
[1735774575093,1.32506526,94801.0,94800.0,0.0010853]
[1735774576319,1.30251225,94801.0,94800.0,0.0010853]
[1735774577063,1.32551225,94801.0,94800.0,3e-07]
[1735774577347,0.61737283,94801.0,94800.0,3e-07]
[1735774577552,0.61737283,94801.0,94791.0,8.53e-05]
[1735774577553,0.5498821,94792.0,94791.0,6e-07]
[1735774577721,0.65386842,94792.0,94791.0,6e-07]
[1735774577938,0.65487299,94792.0,94791.0,6e-07]
[1735774579292,0.65987299,94792.0,94791.0,6e-07]
[1735774579914,0.66887299,94792.0,94791.0,0.0010006]
[1735774580259,0.58817299,94792.0,94791.0,0.0010006]
[1735774580432,0.47997889,94792.0,94791.0,0.0010006]
[1735774580659,0.59307889,94792.0,94791.0,0.0010006]
[1735774581442,0.59318433,94792.0,94791.0,0.0010006]
[1735774581806,0.67837843,94792.0,94791.0,0.0010006]
[1735774582014,0.70137843,94792.0,94791.0,6e-07]
[1735774582230,0.61390821,94792.0,94791.0,6e-07]
[1735774587775,0.61390821,94792.0,94791.0,8.59e-05]
[1735774587979,2.27934121,94792.0,94791.0,8.59e-05]
[1735774588225,0.61390821,94792.0,94791.0,9e-07]
[1735774588442,2.35476773,94792.0,94791.0,9e-07]
[1735774588848,0.68933473,94792.0,94791.0,9e-07]
[1735774589058,0.78933473,94792.0,94791.0,9e-07]
[1735774589675,0.71390821,94792.0,94791.0,9e-07]
[1735774590121,0.4462061,94781.0,94780.0,2e-07]
[1735774590265,0.57319242,94781.0,94780.0,2e-07]
[1735774590467,0.59993371,94781.0,94780.0,2e-07]
[1735774590645,0.68013371,94781.0,94780.0,2e-07]
[1735774591280,0.68025604,94781.0,94780.0,2e-07]
[1735774592019,0.60005604,94781.0,94780.0,2e-07]
[1735774592411,0.60505604,94781.0,94780.0,2e-07]
[1735774593175,0.61405604,94781.0,94780.0,2e-07]
[1735774593872,0.89723228,94781.0,94780.0,2e-07]
[1735774594054,0.78903818,94781.0,94780.0,2e-07]
[1735774594992,0.375012,94781.0,94780.0,0.0788002]
[1735774598230,0.40064382,94781.0,94780.0,0.0788002]
[1735774599032,0.63670542,94781.0,94780.0,0.0788002]
[1735774599800,0.40064382,94781.0,94780.0,0.0788002]
[1735774600765,0.45718319,94781.0,94780.0,0.0788002]
[1735774601726,0.69324479,94781.0,94780.0,0.0788002]
[1735774602541,0.52898742,94781.0,94780.0,0.1254002]
[1735774602743,0.4610736,94781.0,94780.0,0.1254002]
[1735774603326,0.6110736,94781.0,94780.0,0.1254002]
[1735774603582,0.6020736,94781.0,94780.0,0.1254002]
[1735774603727,0.366012,94781.0,94780.0,0.1254002]
[1735774603921,0.361012,94781.0,94780.0,0.1254002]
[1735774604496,0.38441029,94781.0,94780.0,0.1254002]
[1735774604636,0.4100422,94781.0,94780.0,2e-07]
[1735774604827,0.6421038,94781.0,94780.0,2e-07]
[1735774605228,0.74809012,94781.0,94780.0,2e-07]
[1735774605754,0.62022262,94781.0,94780.0,2e-07]
[1735774608032,0.61822262,94781.0,94780.0,2e-07]
[1735774608236,0.72222262,94781.0,94780.0,2e-07]
[1735774608791,0.71322262,94781.0,94780.0,2e-07]
[1735774608992,0.72722262,94781.0,94780.0,2e-07]
[1735774609297,0.361063,94758.0,94753.0,0.0466]
[1735774609625,0.46504932,94758.0,94753.0,0.0466]
[1735774610072,0.46504932,94758.0,94751.0,0.0002853]
[1735774610650,0.46704932,94758.0,94757.0,0.00058017]
[1735774611097,0.46704932,94758.0,94737.0,0.0148059]
[1735774611098,0.36111,94737.0,94736.0,3e-07]
[1735774611290,0.3351941,94726.0,94704.0,0.09487132]
[1735774611517,2.27848842,94726.0,94704.0,0.09487132]
[1735774611728,2.37093411,94726.0,94725.0,9.7e-07]
[1735774611939,0.39407401,94726.0,94725.0,9.7e-07]
[1735774612144,0.25398632,94726.0,94725.0,9.7e-07]
[1735774612575,0.15,94726.0,94725.0,9.7e-07]
[1735774612779,0.159,94726.0,94725.0,9.7e-07]
[1735774613389,0.38563616,94726.0,94725.0,9.7e-07]
[1735774613589,0.25398632,94726.0,94725.0,9.7e-07]
[1735774614090,0.26498632,94726.0,94725.0,9.7e-07]
[1735774614319,0.37318042,94726.0,94725.0,9.7e-07]
[1735774614438,0.32307402,94726.0,94725.0,9.7e-07]
[1735774614635,0.26398632,94726.0,94725.0,9.7e-07]
[1735774615053,0.154,94726.0,94725.0,9.7e-07]
[1735774615252,0.15,94726.0,94725.0,9.7e-07]
[1735774615458,0.164,94726.0,94725.0,9.7e-07]
[1735774615849,0.24936739,94726.0,94725.0,9.7e-07]
[1735774616254,0.25836739,94726.0,94725.0,9.7e-07]
[1735774616837,0.018,94726.0,94725.0,0.14150687]
[1735774617010,0.09436739,94734.0,94725.0,0.14150687]
[1735774617178,0.004,94726.0,94725.0,0.14933898]
[1735774617392,0.004,94726.0,94725.0,0.14150687]
[1735774617606,0.15,94732.0,94725.0,0.14933898]
[1735774618003,0.211121,94733.0,94725.0,0.14933898]
[1735774618206,0.211121,94733.0,94725.0,0.14150687]
[1735774618414,0.009,94726.0,94725.0,0.14150687]
[1735774619224,0.15,94732.0,94725.0,0.14150687]
[1735774620053,0.211124,94731.0,94725.0,0.14150687]
[1735774620454,0.211121,94732.0,94725.0,0.14150687]
[1735774620710,0.15,94733.0,94725.0,0.12670097]
[1735774621515,0.211135,94726.0,94725.0,0.12670097]
[1735774622237,0.211129,94729.0,94725.0,0.12670097]
[1735774622443,0.15,94735.0,94731.0,0.0148059]
[1735774622669,0.09436739,94738.0,94737.0,0.0952059]
[1735774622821,0.15,94739.0,94737.0,0.0952059]
[1735774623225,0.361108,94738.0,94737.0,0.0804]
[1735774623489,0.361108,94738.0,94737.0,0.0952059]
[1735774623697,0.361108,94738.0,94737.0,0.0804]
[1735774624109,0.361108,94738.0,94737.0,0.0952059]
[1735774624512,0.361108,94738.0,94737.0,0.0804]
[1735774625499,0.15,94738.0,94737.0,0.0952059]
[1735774625843,0.15,94738.0,94737.0,0.10301604]
[1735774626120,0.15,94738.0,94737.0,0.0952059]
[1735774626269,0.15,94738.0,94737.0,0.10301604]
[1735774626475,0.2111,94742.0,94741.0,0.0148059]
[1735774627273,0.09436739,94743.0,94742.0,0.0613059]
[1735774627733,0.09436739,94743.0,94742.0,0.06910689]
[1735774628209,0.09436739,94743.0,94742.0,0.15170689]
[1735774628628,0.09436739,94743.0,94742.0,0.29392534]
[1735774628838,0.09436739,94744.0,94743.0,0.3085029]
[1735774629041,0.09436739,94744.0,94743.0,0.41248922]
[1735774629360,0.09436739,94744.0,94743.0,0.42028838]
[1735774629678,0.09436739,94748.0,94743.0,0.42028838]
[1735774629904,0.09436739,94748.0,94744.0,0.10398632]
[1735774630132,0.09436739,94748.0,94747.0,0.0148059]
[1735774630601,0.09436739,94750.0,94747.0,0.02259773]
[1735774631155,0.39993669,94755.0,94747.0,0.02259773]
[1735774631156,0.09436739,94749.0,94747.0,0.02259773]
[1735774632439,0.14164927,94749.0,94747.0,0.02259773]
[1735774633405,0.14164927,94749.0,94748.0,0.0148059]
[1735774633630,0.211071,94755.0,94748.0,0.0148059]
[1735774633788,0.211071,94755.0,94748.0,0.0225959]
[1735774633988,0.02566196,94784.0,94756.0,0.0148059]
[1735774634194,0.15,94763.0,94756.0,0.0148059]
[1735774634389,0.15,94778.0,94761.0,0.0148059]
[1735774634630,0.361055,94762.0,94761.0,0.0148059]
[1735774634834,0.211063,94758.0,94757.0,0.0148059]
[1735774635225,0.211063,94758.0,94757.0,0.00014848]
[1735774636052,0.365063,94758.0,94757.0,0.00014848]
[1735774638215,0.004,94758.0,94757.0,0.09215438]
[1735774640747,0.004,94758.0,94757.0,0.2447407]
[1735774640945,0.004,94758.0,94757.0,0.25445761]
[1735774641829,0.001,94758.0,94757.0,0.25445761]
[1735774642206,0.002,94758.0,94757.0,0.25445761]
[1735774642411,0.001,94758.0,94757.0,0.25445761]
[1735774643030,0.09436892,94767.0,94758.0,0.422126]
[1735774643225,0.23588771,94765.0,94763.0,0.211051]
[1735774643579,0.23588771,94765.0,94764.0,0.10398632]
[1735774643778,0.23588771,94765.0,94764.0,0.11174704]
[1735774644172,0.28301631,94770.0,94764.0,0.11174704]
[1735774644372,0.28301631,94770.0,94769.0,0.0148059]
[1735774644732,0.28301631,94770.0,94769.0,0.09975747]
[1735774644957,0.28301631,94770.0,94769.0,0.14835747]
[1735774645156,0.28301631,94775.0,94774.0,0.0148059]
[1735774645809,0.28301631,94775.0,94774.0,0.02254833]
[1735774646010,0.28318691,94775.0,94774.0,0.02254833]
[1735774646439,0.3185518,94775.0,94774.0,0.02254833]
[1735774647395,0.0001706,94775.0,94774.0,0.02254833]
[1735774647777,0.0001706,94775.0,94774.0,0.0920059]
[1735774647977,0.0001706,94775.0,94774.0,0.09974833]
[1735774651729,0.18915077,94775.0,94774.0,0.0920059]
[1735774652460,0.0001706,94775.0,94774.0,0.0920059]
[1735774654106,0.2111966,94775.0,94774.0,0.0920059]
[1735774654665,0.0001706,94775.0,94774.0,0.0920059]
[1735774657008,0.23637711,94775.0,94774.0,0.09974833]
[1735774657729,0.18904577,94775.0,94774.0,0.09974833]
[1735774658109,0.18904577,94775.0,94774.0,0.0920059]
[1735774658440,0.18904577,94775.0,94774.0,0.09974833]
[1735774658847,0.0001706,94775.0,94774.0,0.09974833]
[1735774659203,0.0001706,94775.0,94774.0,0.31077633]
[1735774660038,0.0001706,94775.0,94774.0,0.41476265]
[1735774662163,0.0001706,94775.0,94774.0,0.46446265]
[1735774662364,0.0944422,94785.0,94784.0,0.2258119]
[1735774662605,0.0944422,94785.0,94784.0,0.47075339]
[1735774663241,0.0944422,94793.0,94784.0,0.47075339]
[1735774663478,0.0944422,94793.0,94786.0,0.292601]
[1735774663676,0.0944422,94793.0,94788.0,0.210997]
[1735774663839,0.0944422,94793.0,94788.0,0.10398632]
[1735774664047,0.0944422,94793.0,94789.0,0.00964374]
[1735774664450,0.0944422,94793.0,94788.0,0.10398632]
[1735774664648,0.0944422,94793.0,94790.0,0.00964145]
[1735774664856,0.0944422,94793.0,94789.0,0.00964374]
[1735774665074,0.0011706,94791.0,94790.0,0.00771316]
[1735774665275,0.0011706,94791.0,94790.0,0.00964145]
[1735774665502,0.0011706,94791.0,94788.0,0.10498632]
[1735774665675,0.0001706,94791.0,94790.0,0.00771316]
[1735774665877,0.0001706,94791.0,94789.0,0.00964374]
[1735774666135,0.0011706,94791.0,94790.0,0.00771316]
[1735774666458,0.0011706,94791.0,94790.0,0.00871316]
[1735774666878,0.0011706,94791.0,94790.0,0.01064145]
[1735774667411,0.0001706,94791.0,94790.0,0.01064145]
[1735774667568,0.0011706,94791.0,94790.0,0.01064145]
[1735774668192,0.0011706,94791.0,94790.0,0.01164145]
[1735774668193,0.0021706,94791.0,94790.0,0.01164145]
[1735774669860,0.0021706,94791.0,94790.0,0.22263345]
[1735774671207,0.0021706,94791.0,94790.0,0.01164145]
[1735774680960,0.02356254,94791.0,94790.0,0.01164145]
[1735774681167,0.0348302,94791.0,94790.0,0.002]
[1735774681761,0.0348302,94791.0,94790.0,0.001]
[1735774682035,0.36421652,94791.0,94790.0,0.001]
[1735774683026,0.15,94790.0,94775.0,8.53e-05]
[1735774683244,0.361023,94776.0,94775.0,8.53e-05]
[1735774684030,0.46500932,94776.0,94775.0,8.53e-05]
[1735774684215,0.56450126,94776.0,94775.0,8.53e-05]
[1735774685236,0.56650126,94776.0,94775.0,8.53e-05]
[1735774686554,0.57163305,94776.0,94775.0,8.53e-05]
[1735774691268,0.6570757,94776.0,94775.0,8.53e-05]
[1735774692050,0.6550757,94776.0,94775.0,8.53e-05]
[1735774692251,0.6530757,94776.0,94775.0,8.53e-05]
[1735774692665,0.6620757,94776.0,94775.0,8.53e-05]
[1735774693065,0.6530757,94776.0,94775.0,8.53e-05]
[1735774693269,0.6620757,94776.0,94775.0,8.53e-05]
[1735774693470,0.6590757,94776.0,94775.0,8.53e-05]
[1735774693869,0.6620757,94776.0,94775.0,8.53e-05]
[1735774696893,0.75645749,94776.0,94775.0,8.53e-05]
[1735774697721,0.6620757,94776.0,94775.0,8.53e-05]
[1735774698537,0.8994577,94776.0,94775.0,8.53e-05]
[1735774699329,0.91087219,94776.0,94775.0,8.53e-05]
[1735774699558,0.89907736,94776.0,94775.0,8.53e-05]
[1735774701086,0.99345915,94776.0,94775.0,8.53e-05]
[1735774701709,0.89907736,94776.0,94775.0,8.53e-05]
[1735774702359,0.80238836,94776.0,94775.0,8.53e-05]
[1735774703432,0.80255896,94776.0,94775.0,8.53e-05]
[1735774703637,0.72445896,94776.0,94775.0,8.53e-05]
[1735774704147,0.99661896,94776.0,94775.0,8.53e-05]
[1735774704365,0.95324396,94776.0,94775.0,8.53e-05]
[1735774704700,0.81139196,94776.0,94775.0,8.53e-05]
[1735774706779,0.96494007,94776.0,94775.0,8.53e-05]
[1735774707338,0.98794007,94776.0,94775.0,3e-07]
[1735774707545,0.93941407,94776.0,94775.0,3e-07]
[1735774708072,0.78884138,94776.0,94775.0,3e-07]
[1735774709073,0.79784138,94776.0,94775.0,3e-07]
[1735774709294,0.79484138,94776.0,94775.0,3e-07]
[1735774709463,0.79884138,94776.0,94775.0,3e-07]
[1735774709900,0.79484138,94776.0,94775.0,3e-07]
[1735774710430,0.79984138,94776.0,94775.0,3e-07]
[1735774712663,0.58576596,94776.0,94775.0,3e-07]
[1735774714776,0.59774138,94776.0,94775.0,3e-07]
[1735774720325,0.7870875,94776.0,94775.0,3e-07]
[1735774721476,0.78718248,94776.0,94775.0,3e-07]
[1735774722415,0.59783636,94776.0,94775.0,3e-07]
[1735774722620,0.62083636,94776.0,94775.0,3e-07]
[1735774725240,0.85704287,94776.0,94775.0,3e-07]
[1735774726102,0.62083636,94776.0,94775.0,3e-07]
[1735774726501,0.80393636,94776.0,94775.0,3e-07]
[1735774728369,0.78993636,94776.0,94775.0,3e-07]
[1735774728570,0.79893636,94776.0,94775.0,3e-07]
[1735774729345,0.80393636,94776.0,94775.0,3e-07]
[1735774735294,1.12281315,94776.0,94775.0,3e-07]
[1735774735906,0.80393636,94776.0,94775.0,3e-07]
[1735774736838,1.12281315,94776.0,94775.0,3e-07]
[1735774737700,1.17181315,94776.0,94775.0,3e-07]
[1735774737899,0.361086,94748.0,94747.0,0.0777]
[1735774738300,0.38247794,94748.0,94747.0,0.0854894]
[1735774739171,0.38247794,94748.0,94747.0,0.0777]
[1735774739366,0.38247794,94748.0,94747.0,0.07784848]
[1735774740224,0.38847794,94748.0,94747.0,0.07784848]
[1735774740635,0.39047794,94748.0,94747.0,0.07784848]
[1735774741974,0.39047794,94748.0,94747.0,0.12654848]
[1735774742184,0.158,94748.0,94747.0,0.13433788]
[1735774743209,0.152,94748.0,94747.0,0.13433788]
[1735774743913,0.15,94748.0,94747.0,0.13433788]
[1735774749972,0.15,94748.0,94747.0,0.13442318]
[1735774753545,0.15010425,94748.0,94747.0,0.13442318]